Cogmind - Beta 13 @@@ ROGUE MODE // 2024.04.07 @ 09:16:47 Player: LU-1G1 Result: Destroyed by 1F-LT7(R) with Subdweller Laser Performance ------------- Evolutions (0) 0 Regions Visited (3) 600 Robots Destroyed (33) 165 Value Destroyed (919) 919 Prototype IDs (0) 0 Alien Tech Used (0) 0 Bonus (0) 0 TOTAL SCORE: 1684 Bonus ------- None Cogmind --------- Core Integrity 0/250 Matter 282/300 Energy 100/100 System Corruption 0% Temperature Cool (6) Movement Rolling (120) Ox1 Location -10/Subcaves Parts ------- > --- POWER (1) -------- (None) > --- PROPULSION (2) --- Subdweller Monowheel > --- UTILITY (2) ------ Large Storage Unit > --- WEAPON (2) ------- Heavy Assault Rifle Grenade Launcher > --- INVENTORY (15) --- Ion Engine Huge Storage Unit Seismic Detector Transport Network Coupler Assault Rifle Assault Rifle Assault Rifle Assault Rifle Assault Rifle Maul Peak State ------------ > --- POWER ------------ Light Nuclear Core > --- PROPULSION ------- Light Treads Light Treads > --- UTILITY ---------- Large Storage Unit Light Armor Plating > --- WEAPON ----------- Heavy Assault Rifle Heavy Assault Rifle > --- INVENTORY -------- Ion Engine Light Treads Light Treads Improved Heat Sink Huge Storage Unit Seismic Detector Transport Network Coupler Assault Rifle Assault Rifle Assault Rifle Assault Rifle Assault Rifle Heavy Assault Rifle Heavy Assault Rifle Maul [Rating: 13] Favorites ----------- Power Light Nuclear Core Engine Light Ion Engine Power Core Light Nuclear Core Propulsion Light Treads Treads Light Treads Wheel Subdweller Monowheel Utility Large Storage Unit Device Improved Heat Sink Storage Large Storage Unit Protection Light Armor Plating Weapon Heavy Assault Rifle Energy Gun Small Laser Ballistic Gun Heavy Assault Rifle Launcher Grenade Launcher Impact Weapon Maul Build | -11 -10 -10 -10 ------- Run | Yrd Mat Min Sub Slots Evolved . | . . . . Power . | . . . . Propulsion . | . . . . Utility . | . . . . Weapon . | . . . . Parts Attached 31 | 8 9 1 13 Power 2 | 1 1 . . Engine 1 | 1 . . . Core 1 | . 1 . . Reactor . | . . . . Propulsion 7 | 2 . . 5 Treads 6 | 2 . . 4 Leg . | . . . . Wheel 1 | . . . 1 Hover . | . . . . Flight . | . . . . Utility 7 | 2 3 1 1 Device 3 | 1 1 . 1 Storage 2 | 1 1 . . Processor . | . . . . Hackware . | . . . . Protection 2 | . 1 1 . Artifact . | . . . . Weapon 15 | 3 5 . 7 Energy Gun 4 | 3 1 . . Energy Cannon . | . . . . Ballistic Gun 8 | . 4 . 4 Ballistic Cannon . | . . . . Launcher 2 | . . . 2 Special Weapon . | . . . . Impact Weapon 1 | . . . 1 Slashing Weapon . | . . . . Piercing Weapon . | . . . . Special Melee Weapon . | . . . . Unidentified Prototypes . | . . . . Parts Lost 10 | . . . 10 Power 1 | . . . 1 Propulsion 5 | . . . 5 Utility 1 | . . . 1 Weapon 3 | . . . 3 Highest Loss Streak 4 | . . . 4 To Critical Strikes 1 | . . . 1 Average Slot Usage (%) 95 | . 99 100 91 Engine 3 | . 11 . . Core 8 | . 2 14 10 Treads 26 | . 28 28 25 Device 4 | . 9 . 3 Storage 14 | . 14 14 14 Protection 7 | . 4 14 6 Energy Gun 2 | . 8 . . Ballistic Gun 20 | . 19 28 18 Launcher 2 | . . . 4 Impact Weapon 1 | . . . 3 Naked Turns . | . . . . Heaviest Build 34 | 12 34 34 34 Greatest Support 40 | 40 40 20 40 Greatest Overweight (x) 1 | . 1 1 1 Average Overweight (x) . | . . 1 . Largest Inventory Capacity 15 | 8 15 15 15 Average Capacity 13 | 7 11 15 15 Most Carried 15 | 6 15 15 15 Average Carried 12 | 4 9 15 13 Final Capacity 15 | 8 15 15 15 Final Carried 15 | 6 15 15 10 Class Distribution -------------------- 100% | Mutant Dominant Class ---------------- Mutant | -10/Materials Mutant | -10/Mines Mutant | -10/Subcaves Resources | -11 -10 -10 -10 ----------- Run | Yrd Mat Min Sub Matter Collected 949 | 274 222 52 401 Remotely . | . . . . Salvage Created 1457 | 92 703 95 567 Parts 89 | 7 30 4 48 Haulers Intercepted 2 | . 2 . . Recyclers Shooed 3 | 1 2 . . Parts Field Recycled . | . . . . Retrieved Matter . | . . . . Parts Self-Destructed 21 | . . . 21 Prevented . | . . . . Kills | -11 -10 -10 -10 ------- Run | Yrd Mat Min Sub Combat Hostiles Destroyed 24 | . 9 2 13 Guns 21 | . 9 2 10 AOE 3 | . . . 3 Classes Destroyed 8 | 2 3 . 3 Tunneler 2 | 2 . . . Hauler 2 | . 2 . . Recycler 4 | 1 3 . . Watcher 1 | . 1 . . Swarmer 3 | . . . 3 Grunt 11 | . 9 2 . Sentry 1 | . . . 1 Subdweller 9 | . . . 9 Best Kill Streak 5 | 2 5 2 5 Combat Bots Only 5 | . 2 2 5 Max Kills in Single Turn 1 | 1 1 1 1 Gunslinging . | . . . . Exploded 1 | . . . 1 Melee . | . . . . Uniques/NPCs Destroyed . | . . . . Combat | -11 -10 -10 -10 -------- Run | Yrd Mat Min Sub Hostile Shots Fired 143 | . 53 8 82 Missed 35 | . 12 1 22 Damage Taken 1712 | . 508 106 1098 Core 255 | . 32 47 176 Absorbed by Shields . | . . . . Core Remaining (%) 100 | 100 . . . Volleys Fired 113 | 12 45 7 49 Largest 2 | 2 2 2 2 Hottest 90 | 90 90 46 53 Shots Fired 215 | 23 90 14 88 Gun 205 | 23 90 14 78 Cannon . | . . . . Launcher 10 | . . . 10 Special . | . . . . Kinetic 137 | . 45 14 78 Thermal 68 | 23 45 . . Explosive 10 | . . . 10 Electromagnetic . | . . . . Robot Hit Streak 18 | 5 18 3 14 Robot Miss Streak 4 | 2 3 2 4 Penetration Max . | . . . . Secondary Targets 6 | . 2 . 4 Max Gunslinging Chain 1 | . 1 . 1 Shots Hit Robots 149 | 14 62 8 65 Core Hits 68 | 4 29 4 31 Critical Kills . | . . . . Critical Parts Destroyed . | . . . . Critical Strikes 4 | 1 3 . . Burn 4 | 1 3 . . Melee Attacks 12 | . . . 12 Impact 12 | . . . 12 Slashing . | . . . . Piercing . | . . . . Sneak Attacks . | . . . . Combat Hostiles . | . . . . Follow-up Attacks . | . . . . Damage Inflicted 2523 | 186 799 146 1392 Guns 1973 | 178 778 146 871 Cannons . | . . . . Explosions 521 | . . . 521 Melee . | . . . . Ramming 29 | 8 21 . . Kinetic 1425 | . 408 146 871 Thermal 548 | 178 370 . . Explosive 521 | . . . 521 Electromagnetic . | . . . . Impact . | . . . . Slashing . | . . . . Piercing . | . . . . Highest Corruption . | . . . . Average Corruption . | . . . . Corruption Purged . | . . . . Corruption Blocked . | . . . . Overload Shots . | . . . . Overflow Damage 25 | . . . 25 Projectiles . | . . . . Explosions 25 | . . . 25 Melee . | . . . . Knockbacks . | . . . . Impact . | . . . . Kinetic . | . . . . Secondary . | . . . . Self-Inflicted Damage 47 | . . . 47 Shots 2 | . . . 2 Rammed 4 | 2 2 . . Targets Rammed 5 | 2 3 . . Kicked . | . . . . Crushed 1 | . 1 . . Highest Temperature 219 | 160 219 60 . Average Temperature 66 | 76 68 35 . Received Heat Transfer 537 | . 309 60 168 Siege Activations . | . . . . Robots Corrupted . | . . . . Combat Hostiles . | . . . . Parts Fried . | . . . . Impact Corruptions . | . . . . Robots Melted . | . . . . Combat Hostiles . | . . . . Parts Melted 3 | . 3 . . Heat Transferred 1747 | 557 1190 . . Parts Sabotaged . | . . . . Parts Stolen . | . . . . Parts Stripped . | . . . . Power Chain Reactions . | . . . . Alert | -11 -10 -10 -10 ------- Run | Yrd Mat Min Sub Peak Influence 199 | 15 199 96 . Initial 31 | . 9 31 . Average 63 | 6 83 51 . Maximum Alert Level . | . . . . Low Security (%) 100 | 100 100 100 . Level 1 . | . . . . Level 2 . | . . . . Level 3 . | . . . . Level 4 . | . . . . Level 5 . | . . . . High Security . | . . . . Max Security . | . . . . Squads Dispatched 2 | . 2 . . Investigation 2 | . 2 . . Extermination . | . . . . Reinforcement . | . . . . Assault . | . . . . Garrison . | . . . . Intercept . | . . . . Searches Triggered . | . . . . Construction Impeded . | . . . . Haulers Reinforced . | . . . . Active Scanning Responses . | . . . . Cargo Convoy Interrupts . | . . . . Stealth | -11 -10 -10 -10 --------- Run | Yrd Mat Min Sub Distress Signals 1 | . 1 . . Communications Jammed . | . . . . Distress Signals . | . . . . Times Spotted 37 | . 16 2 19 Peak Tracking Total 8 | . 4 2 8 Tactical Retreats 1 | . . . 1 Traps | -11 -10 -10 -10 ------- Run | Yrd Mat Min Sub Traps Triggered 1 | . 1 . . Indirectly . | . . . . Trap Hack Attempts . | . . . . Triggered . | . . . . Disarmed . | . . . . Reprogrammed . | . . . . Reused . | . . . . Traps Extracted . | . . . . Installed . | . . . . Triggered 3 | . . . 3 Machines | -11 -10 -10 -10 ---------- Run | Yrd Mat Min Sub Machines Disabled 1 | . 1 . . Max in Single Turn 1 | . 1 . . Machines Repaired . | . . . . Machines Dismantled . | . . . . Machines Sabotaged . | . . . . Overloaded Fab Kills . | . . . . Hacking | -11 -10 -10 -10 --------- Run | Yrd Mat Min Sub Machines Accessed 8 | . 8 . . Terminals 6 | . 6 . . Fabricators . | . . . . Repair Stations 1 | . 1 . . Recycling Units 1 | . 1 . . Scanalyzers . | . . . . Garrison Access . | . . . . Total Hacks 24 | . 24 . . Successful 10 | . 10 . . Failed 14 | . 14 . . Catastrophic 1 | . 1 . . Database Lockouts . | . . . . Manual 10 | . 10 . . Terminals 18 | . 18 . . Fabricators . | . . . . Repair Stations 3 | . 3 . . Recycling Units 3 | . 3 . . Scanalyzers . | . . . . Garrison Access . | . . . . Terminal Hacks 8 | . 8 . . Record 1 | . 1 . . Robot Analysis 1 | . 1 . . Repair Station Index 1 | . 1 . . Alert Level 1 | . 1 . . Transport Status 1 | . 1 . . Hauler Manifests 1 | . 1 . . Zone Layout 2 | . 2 . . Fabricator Hacks . | . . . . Repair Station Hacks 1 | . 1 . . Scan Component 1 | . 1 . . Recycling Unit Hacks 1 | . 1 . . Report Inventory 1 | . 1 . . Scanalyzer . | . . . . Garrison Access Hacks . | . . . . Unauthorized Hacks . | . . . . Terminals . | . . . . Fabricators . | . . . . Repair Stations . | . . . . Recycling Units . | . . . . Scanalyzers . | . . . . Garrison Access . | . . . . Data Cores Recovered . | . . . . Used . | . . . . Hacking Detections 8 | . 8 . . Full Trace Events 2 | . 2 . . Feedback Events . | . . . . Feedback Blocked . | . . . . Robot Schematics Acquired . | . . . . Robots Built . | . . . . Authchips . | . . . . Time . | . . . . Total Robot Build Rating . | . . . . Part Schematics Acquired . | . . . . Parts Built . | . . . . Authchips . | . . . . Time . | . . . . Total Part Build Rating . | . . . . Parts Repaired . | . . . . Time . | . . . . Parts Recycled . | . . . . Recycled Matter . | . . . . Retrieved Matter . | . . . . Retrieved Components . | . . . . Parts Scanalyzed . | . . . . Part Schematics Acquired . | . . . . Parts Damaged . | . . . . Bothacking | -11 -10 -10 -10 ------------ Run | Yrd Mat Min Sub Used RIF Installer . | . . . . Robots Hacked . | . . . . Non-combat . | . . . . Combat . | . . . . Robot Hacks Applied . | . . . . Relay Couplers Released . | . . . . Fabnet Peak Effective % . | . . . . Robots Rewired . | . . . . Allies Hacked . | . . . . Hacks Repelled . | . . . . Allies | -11 -10 -10 -10 -------- Run | Yrd Mat Min Sub Total Allies . | . . . . Largest Group . | . . . . Highest-Rated Group . | . . . . Highest-Rated Ally . | . . . . Total Orders . | . . . . Ally Attacks . | . . . . Total Damage . | . . . . Kills . | . . . . Allies Corrupted . | . . . . Allies Melted . | . . . . Intel | -11 -10 -10 -10 ------- Run | Yrd Mat Min Sub Robot Analysis Total 1 | . 1 . . Derelict Logs Recovered 2 | . . 1 1 Drone Launches . | . . . . Drone Recoveries . | . . . . Exploration | -11 -10 -10 -10 ------------- Run | Yrd Mat Min Sub Turns Passed 3569 | 214 1058 719 1578 Spaces Moved 1439 | 105 444 126 764 Core 8 | 8 . . . Treads 1263 | 97 444 126 596 Legs . | . . . . Wheels 168 | . . . 168 Hover . | . . . . Flight . | . . . . Fastest Speed 50 | 50 160 240 120 Average Speed 186 | 151 194 240 177 Slowest Speed 240 | 160 240 240 240 Overloaded Moves . | . . . . Propulsion Burnouts . | . . . . Robots Hopped . | . . . . Cave-ins Triggered . | . . . . Exploration Rate (%) 38 | 6 71 32 46 Regions Visited 3 Branch Regions 2 Pre-discovered Areas . | . . . . Known Exits Taken . | . . . . Unknown Exits Taken 3 | 1 1 1 . Scrap Searched 6 | . . 2 4 Spaces Dug 10 | . . . 10 Terrain Destroyed 54 | . . . 54 Melee 1 | . . . 1 Projectile . | . . . . AOE 53 | . . . 53 Terrain Rammed . | . . . . Walls Destroyed . | . . . . Machines Disabled . | . . . . Actions | -11 -10 -10 -10 --------- Run | Yrd Mat Min Sub Total 2084 | 132 549 530 873 Wait 448 | . 23 396 29 Move 1436 | 104 443 125 764 Hop . | . . . . Pick Up 18 | 5 13 . . Fast Attach 14 | 8 4 . 2 Attach 7 | . 1 . 6 Detach 4 | 1 2 . 1 Swap 10 | . 4 1 5 Drop 13 | . 11 1 1 Fire 113 | 12 45 7 49 Melee 12 | . . . 12 Ram . | . . . . Kick . | . . . . Crush 5 | 2 3 . . Escape Stasis . | . . . . Rewire 4 | . . . 4 Trap . | . . . . Miscellaneous . | . . . . Route ------- -11/Scrapyard -10/Materials (discovered 4 exits: [*Mat x3] / [*Min]) -10/Mines -10/Subcaves History --------- Turn | Location | Event 2 | -11/Scrapyard | Met Revision 17 9 | -11/Scrapyard | Discovered new exit (range 15) 215 | -11/Scrapyard | Entered Materials 276 | -10/Materials | Discovered new exit (range 13) 311 | -10/Materials | Build established: Mutant 831 | -10/Materials | Discovered new exit (range 4) 978 | -10/Materials | Discovered new exit (range 14) 1093 | -10/Materials | Discovered new exit (range 7) 1273 | -10/Materials | Entered Mines 1357 | -10/Mines | Found a hidden stash of uninstalled traps 1469 | -10/Mines | Learned Materials machine intel 1503 | -10/Mines | Assembled infested the area 1987 | -10/Mines | Discovered new exit (range 3) 1992 | -10/Mines | Entered Subcaves 2014 | -10/Subcaves | Learned Materials emergency access door positions 2124 | -10/Subcaves | Shifting Twisted Machinery released Sub. Power Source 2668 | -10/Subcaves | Disturbed a concealed Subdweller 2708 | -10/Subcaves | Lost 3 parts (2n1u) 3309 | -10/Subcaves | Core integrity fell below 50% 3325 | -10/Subcaves | Core integrity fell below 20% 3364 | -10/Subcaves | Lost 4 parts (2n2w) 3570 | -10/Subcaves | Destroyed by 1F-LT7(R) with Subdweller Laser Last Messages --------------- 03435_ ZX-LH9(R) affixes Scrap Shield Fragment to Scrap Shield. 03436_ Flight Unit fries itself beyond repair. 03436_ Lgt. Ion Engine fries itself beyond repair. 03438_ S-10 Pest destroyed. 03438_ ZX-LH9(R) destroyed. 03438_ Switching to secondary target: S-10 Pest. 03441_ Flight Unit fries itself beyond repair. 03441_ S-10 Pest destroyed. 03443_ Lgt. Assault Rifle fries itself beyond repair. 03444_ Acquired 12 matter. 03446_ Flight Unit fries itself beyond repair. 03446_ Acquired 30 matter. 03447_ Flight Unit fries itself beyond repair. 03448_ Lgt. Ion Engine fries itself beyond repair. 03449_ Flight Unit fries itself beyond repair. 03507_ CY-NZP(z): "She is not going to be happy we haven't found any suitable candidates yet." 03522_ Hvy. Assault Rifle destroyed. 03566_ Lgt. Treads destroyed. Map ----- +----------------------------------------------------+ | ?????????????????????????????????????????????????? | | ?????????????????????????????????????????????????? | | ?????????????????????????????????????????????????? | | ?????????????????????????????????????????????????? | | ?????????????????????????????????????????????????? | | ?????????????????????????????????????????????????? | | ?????????????????????????????????????????????????? | | ?????????????????????????????????????????????????? | | ?????????????????????????????????????????????????? | | ?????????????????????????????????????????????????? | | ?????????????????????????????????????????????????? | | ?????????????????????????????????????????????????? | | ?????????????????????????????????????????????????? | | ?????????????????????????????????????????????????? | | ?????????????????????????????????????????????????? | | ?????????????????????????????????????????????????? | | ?????????????????????????????????????????????????? | | ?????????????????????????????????????????????????? | | ?????????????????????????????????????????????????? | | ?????????????????????????????????????????????????? | | ?????????????????????????????????????????????????? | | ?????????????????????????????????????????????????? | | ???????????????????????????????????????????? ???? | | ???????????####??????###?????????????????? "????? | | ?????##????# ##?????# ####?????????????? """ ??? | | ?????# ????# #?????# @##???###???### " "? | | ?????# ##??# #????## #??## #### " | | ?????# #?## #?#### #??# | | ????## ?# #?# ##??# #? | | ????# #??# ## #???# #? | | ????## #### ## RR #####???## #### # ##??? | | ????# ## # #???????## #????## #????? | | ###### # #??###??## #?????????????? | | # ##?# ##?# #?????????????? | | ### #### ##????????????? | | ### ### #????????????? | | #?## ### #????????????? | | ##??## #?# ####????????????? | | ##????##### ###???????????????? | | ??????????### #####?????????????????? | | ????????????## ######## ##?????????????????????? | | ?????????????# #??????###??????????????????????? | | ?????????????#####???????????????????????????????? | | ?????????????????????????????????????????????????? | | ?????????????????????????????????????????????????? | | ?????????????????????????????????????????????????? | | ?????????????????????????????????????????????????? | | ?????????????????????????????????????????????????? | | ?????????????????????????????????????????????????? | | ?????????????????????????????????????????????????? | +----------------------------------------------------+ Best States ------------- Heat Dissipation 39 Energy Generation 14 Energy Capacity 160 Matter Stores 300 Matter Capacity 300 Sight Range 21 Terrain Scan Density 10 Armor Coverage 150 Evasion (%) 40 Recoil Reduction 2 Item Schematics ----------------- None Robot Schematics ------------------ None Fabricated ------------ Nothing Alien Tech Used ----------------- None Achievements -------------- None Challenges ------------ None Game ------ Seed BehemothTacticalBay Manual? 0 Play Time 00:16:38 Cumulative 659.2 hours Start 2024.04.07 @ 01:45:38 End 2024.04.07 @ 09:16:47 Sessions 2 Manual Loads 0 Difficulty Rogue Special Mode None Game No. 578 Rogue 363 Adventurer 112 Explorer 103 Win Type - Total 42 Types 26/0/8/3/0/0/4/1/0 Lore% 85 Gallery% 91 Achievement% 82 Wizard Run 0 Options --------- Layout 2 ASCII 1 Keyboard 1 Movement Vi Keybinds 1 Fullscreen 2 Font 24/Terminus Map View 55x54 Zoom Use 0% Tactical HUD 1 Map Filters NONE Filters NONE Steam 0 RUN: fd1fee6d-03c9-4728-b979-6c2bcbccbfb7